lending/lending_fUSD_20240130
["ID","MTS","AMOUNT","RATE_DAILY","PERIOD"]
[313014162,1706620334684,-770.15224341,0.00051968,60]
[313014163,1706620334708,-150.0,0.00051969,60]
[313014164,1706620334731,-67079.0,0.00051969,30]
[313014165,1706620334754,-511.0,0.00051969,30]
[313014166,1706620334779,-2465.18433582,0.00051974,60]
[313014167,1706620334801,-150.0,0.00051976,60]
[313014168,1706620334824,-1241803.38138532,0.0005198,30]
[313014169,1706620340505,-28942.06996429,0.0005,30]
[313014170,1706620340539,-164.76563203,0.0005132,60]
[313014171,1706620340563,-164.76563203,0.00051553,60]
[313014172,1706620340588,-166.08017147,0.00051882,60]
[313014173,1706620340612,-341366.08004328,0.0005198,30]
[313014174,1706620340636,-500.0,0.0005198,60]
[313014175,1706620340661,-1406.21589016,0.0005198,60]
[313014176,1706620340684,-454.15,0.0005198,30]
[313014177,1706620340708,-420.05964538,0.00051982,60]
[313014178,1706620340730,-2439.51648184,0.00051984,60]
[313014179,1706620340754,-200.0,0.00051987,69]
[313014180,1706620340782,-200.0,0.00051987,52]
[313014181,1706620340805,-200.0,0.00051987,41]
[313014182,1706620340829,-150.0,0.0005199,60]
[313014183,1706620340852,-2494.69053638,0.00051994,60]
[313014184,1706620340877,-201.013,0.00051998,60]
[313014185,1706620340902,-50000.0,0.00052,42]
[313014186,1706620340925,-485000.0,0.00052,120]
[313014187,1706620340949,-600.0,0.00052,53]
[313014188,1706620340971,-85138.28926578,0.00052,40]
[313014189,1706620340995,-2000.0,0.00052,120]
[313014190,1706620341017,-2000.0,0.00052,120]
[313014191,1706620341042,-2000.0,0.00052,120]
[313014192,1706620341065,-2000.0,0.00052,120]
[313014193,1706620341092,-1000000.0,0.00052,120]
[313014194,1706620341115,-90954.18684869,0.00052,120]
[313014195,1706620341137,-300.0,0.00052,36]
[313014196,1706620341161,-1048.0,0.00052,120]
[313014197,1706620341189,-1058.0,0.00052,120]
[313014198,1706620341214,-1000.0,0.00052,60]
[313014199,1706620341240,-1000.0,0.00052,120]
[313014200,1706620341263,-1000.0,0.00052,120]
[313014201,1706620341286,-904.5226798,0.00052,120]
[313014202,1706620341310,-200.0,0.00052,120]
[313014203,1706620341333,-60550.20989957,0.00052,30]
[313014204,1706620341356,-653.3082868,0.00052,120]
[313014205,1706620341379,-30089.226645,0.00052,120]
[313014206,1706620341583,-240784.11047165,0.00052,60]
[313014207,1706620341607,-250.0,0.00052,120]
[313014208,1706620341633,-150.0,0.00052,120]
[313014209,1706620341656,-200.0,0.00052,120]
[313014210,1706620341680,-5000.0,0.00052,120]
[313014211,1706620341705,-300.0,0.00052,30]
[313014212,1706620341727,-200.0,0.00052,30]
[313014213,1706620341750,-718.13615817,0.00052,120]
[313014214,1706620341774,-541.5325848,0.00052,60]
[313014215,1706620341796,-1673.22362702,0.00052,60]
[313014216,1706620341819,-150.78,0.00052,120]
[313014217,1706620341843,-150.78,0.00052,120]
[313014218,1706620341866,-150.78,0.00052,120]
[313014219,1706620341890,-150.78,0.00052,120]
[313014220,1706620341915,-150.78,0.00052,120]
[313014221,1706620341938,-150.78,0.00052,120]
[313014222,1706620341963,-150.78,0.00052,120]
[313014223,1706620341985,-150.78,0.00052,120]
[313014224,1706620342009,-150.78,0.00052,120]
[313014225,1706620342035,-150.78,0.00052,120]
[313014226,1706620342062,-150.78,0.00052,120]
[313014227,1706620342089,-150.78,0.00052,120]
[313014228,1706620342114,-150.78,0.00052,120]
[313014229,1706620342139,-150.78,0.00052,120]
[313014230,1706620342163,-150.78,0.00052,120]
[313014231,1706620342188,-150.78,0.00052,120]
[313014232,1706620342212,-150.78,0.00052,120]
[313014233,1706620342240,-150.78,0.00052,120]
[313014234,1706620342269,-150.78,0.00052,120]
[313014235,1706620342299,-150.78,0.00052,120]
[313014236,1706620342324,-150.78,0.00052,120]
[313014237,1706620342348,-150.78,0.00052,120]
[313014238,1706620342373,-150.78,0.00052,120]
[313014239,1706620342397,-150.78,0.00052,120]
[313014240,1706620342423,-150.78,0.00052,120]
[313014241,1706620342447,-150.78,0.00052,120]
[313014242,1706620342470,-150.78,0.00052,120]
[313014243,1706620342492,-150.78,0.00052,120]
[313014244,1706620342516,-150.78,0.00052,120]
[313014245,1706620342541,-150.78,0.00052,120]
[313014246,1706620342564,-150.78,0.00052,120]
[313014247,1706620342588,-150.78,0.00052,120]
[313014248,1706620342611,-150.78,0.00052,120]
[313014249,1706620342635,-150.78,0.00052,120]
[313014250,1706620342658,-150.78,0.00052,120]
[313014251,1706620342681,-150.78,0.00052,120]
[313014252,1706620342704,-150.78,0.00052,120]
[313014253,1706620342728,-150.78,0.00052,120]
[313014254,1706620342752,-150.78,0.00052,120]
[313014255,1706620342778,-150.78,0.00052,120]
[313014256,1706620342801,-150.78,0.00052,120]
[313014257,1706620342827,-150.78,0.00052,120]
[313014258,1706620342852,-150.78,0.00052,120]
[313014259,1706620342875,-150.78,0.00052,120]
[313014260,1706620342898,-150.78,0.00052,120]
[313014261,1706620342922,-254.201809,0.00052,30]
[313014262,1706620342946,-150.78,0.00052,120]
[313014263,1706620342969,-150.78,0.00052,120]
[313014264,1706620342993,-150.78,0.00052,120]
[313014265,1706620343017,-150.78,0.00052,120]
[313014266,1706620343043,-150.78,0.00052,120]
[313014267,1706620343067,-150.78,0.00052,120]
[313014268,1706620343093,-150.78,0.00052,120]
[313014269,1706620343119,-150.78,0.00052,120]
[313014270,1706620343143,-150.78,0.00052,120]
[313014271,1706620343167,-150.78,0.00052,120]
[313014272,1706620343193,-150.78,0.00052,120]
[313014273,1706620343219,-150.78,0.00052,120]
[313014274,1706620343242,-150.78,0.00052,120]
[313014275,1706620343266,-150.78,0.00052,120]
[313014276,1706620343291,-150.78,0.00052,120]
[313014277,1706620343316,-150.78,0.00052,120]
[313014278,1706620343339,-150.78,0.00052,120]
[313014279,1706620343361,-150.78,0.00052,120]
[313014280,1706620343385,-150.78,0.00052,120]
[313014281,1706620343408,-150.78,0.00052,120]
[313014282,1706620343432,-150.78,0.00052,120]
[313014283,1706620343456,-150.78,0.00052,120]
[313014284,1706620343479,-150.78,0.00052,120]
[313014285,1706620343502,-150.78,0.00052,120]
[313014286,1706620343528,-150.78,0.00052,120]
[313014287,1706620343551,-150.78,0.00052,120]
[313014288,1706620343573,-150.78,0.00052,120]
[313014289,1706620343596,-150.78,0.00052,120]
[313014290,1706620343619,-150.78,0.00052,120]
[313014291,1706620343644,-150.78,0.00052,120]
[313014292,1706620343667,-150.78,0.00052,120]
[313014293,1706620343690,-150.78,0.00052,120]
[313014294,1706620343713,-150.78,0.00052,120]
[313014295,1706620343738,-150.78,0.00052,120]
[313014296,1706620343761,-150.78,0.00052,120]
[313014297,1706620343785,-150.78,0.00052,120]
[313014298,1706620343809,-150.78,0.00052,120]
[313014299,1706620343831,-150.78,0.00052,120]
[313014300,1706620343856,-150.78,0.00052,120]
[313014301,1706620343879,-150.78,0.00052,120]
[313014302,1706620343903,-150.78,0.00052,120]
[313014303,1706620343927,-150.78,0.00052,120]
[313014304,1706620343950,-150.78,0.00052,120]
[313014305,1706620343974,-4328.0,0.00052,120]
[313014306,1706620343998,-150.78,0.00052,120]
[313014307,1706620344174,-150.78,0.00052,120]
[313014308,1706620344199,-150.78,0.00052,120]
[313014309,1706620344223,-150.78,0.00052,120]
[313014310,1706620344247,-150.78,0.00052,120]
[313014311,1706620344273,-150.78,0.00052,120]
[313014312,1706620344296,-150.78,0.00052,120]
[313014313,1706620344320,-150.78,0.00052,120]
[313014314,1706620344343,-150.78,0.00052,120]
[313014315,1706620344367,-150.78,0.00052,120]
[313014316,1706620344391,-150.78,0.00052,120]
[313014317,1706620344414,-150.78,0.00052,120]
[313014318,1706620344438,-642.53757502,0.00052,60]
[313014319,1706620344463,-6462.99586249,0.00052,60]
[313014320,1706620344488,-1927.44134972,0.00052,60]
[313014321,1706620344515,-164.76563203,0.00052001,60]
[313014322,1706620344550,-150.0,0.00052021,30]
[313014323,1706620344579,-150.0,0.0005205,30]
[313014324,1706620344609,-190.44641328,0.00052054,31]
[313014325,1706620344637,-519.84703555,0.00052054,31]
[313014326,1706620344670,-200.0,0.00052054,31]
[313014327,1706620344699,-176.67175479,0.00052054,31]
[313014328,1706620344729,-500.0,0.00052054,31]
[313014329,1706620344757,-500.0,0.00052054,31]
[313014330,1706620344795,-503.68856374,0.00052054,31]
[313014331,1706620344824,-272.31701927,0.00052054,31]
[313014332,1706620344852,-381.20346939,0.00052054,31]
[313014333,1706620344879,-500.0,0.00052054,31]
[313014334,1706620344906,-500.0,0.00052054,31]
[313014335,1706620344935,-517.95176749,0.00052054,31]
[313014336,1706620344962,-506.52780699,0.00052054,31]
[313014337,1706620344990,-517.48900875,0.00052054,31]
[313014338,1706620345017,-633.77841854,0.00052054,31]
[313014339,1706620345051,-512.17471002,0.00052054,31]
[313014340,1706620345085,-514.13781288,0.00052054,31]
[313014341,1706620345111,-290.34283761,0.00052054,31]
[313014342,1706620345135,-401.89504622,0.00052054,31]
[313014343,1706620345159,-505.87273353,0.00052054,31]
[313014344,1706620345184,-291.0231438,0.00052054,31]
[313014345,1706620345209,-315.91415358,0.00052054,31]
[313014346,1706620345233,-475.02309695,0.00052054,31]
[313014347,1706620345258,-556.05747873,0.00052054,31]
[313014348,1706620345288,-558.60839972,0.00052054,31]
[313014349,1706620345312,-365.34932785,0.00052054,31]
[313014350,1706620345340,-535.22370575,0.00052054,31]
[313014351,1706620345364,-623.06818465,0.00052054,31]
[313014352,1706620345388,-500.0,0.00052054,31]
[313014353,1706620345412,-500.0,0.00052054,31]
[313014354,1706620345436,-500.0,0.00052054,31]
[313014355,1706620345459,-1247.5,0.00052054,31]
[313014356,1706620345483,-500.0,0.00052054,31]
[313014357,1706620345507,-519.79079363,0.00052054,31]
[313014358,1706620345535,-517.17829316,0.00052054,31]
[313014359,1706620345558,-160.6414613,0.00052054,31]
[313014360,1706620345582,-598.05029034,0.00052054,31]
[313014361,1706620345606,-500.0,0.00052054,31]
[313014362,1706620345629,-500.0,0.00052054,31]
[313014363,1706620345655,-524.33484222,0.00052054,31]
[313014364,1706620345679,-528.34170091,0.00052054,31]
[313014365,1706620345703,-534.08272241,0.00052054,31]
[313014366,1706620345727,-303.25201704,0.00052054,31]
[313014367,1706620345751,-500.0,0.00052054,31]
[313014368,1706620345779,-456.60502535,0.00052054,31]
[313014369,1706620345801,-527.4013263,0.00052054,31]
[313014370,1706620345824,-353.7263254,0.00052054,31]
[313014371,1706620345847,-532.38130157,0.00052054,31]
[313014372,1706620345870,-621.69975961,0.00052054,31]
[313014373,1706620345894,-544.31515246,0.00052054,31]
[313014374,1706620345917,-1202.87,0.00052054,31]
[313014375,1706620345941,-566.4282732,0.00052054,31]
[313014376,1706620345964,-500.0,0.00052054,31]
[313014377,1706620345987,-283.74503302,0.00052054,31]
[313014378,1706620346013,-500.0,0.00052054,31]
[313014379,1706620346056,-500.0,0.00052054,31]
[313014380,1706620346082,-537.23284399,0.00052054,31]
[313014381,1706620346107,-500.0,0.00052054,31]
[313014382,1706620346133,-520.38816005,0.00052054,31]
[313014383,1706620346158,-561.2476346,0.00052054,31]
[313014384,1706620346182,-537.94522609,0.00052054,31]
[313014385,1706620346207,-211.50933393,0.00052054,31]
[313014386,1706620346232,-500.0,0.00052054,31]
[313014387,1706620346257,-351.82386486,0.00052054,31]
[313014388,1706620346285,-500.0,0.00052054,31]
[313014389,1706620346310,-500.0,0.00052054,31]
[313014390,1706620346336,-538.59438626,0.00052054,31]
[313014391,1706620346361,-506.32234149,0.00052054,31]
[313014392,1706620346385,-528.35164105,0.00052054,31]
[313014393,1706620346410,-500.0,0.00052054,31]
[313014394,1706620346435,-517.84450966,0.00052054,31]
[313014395,1706620346459,-500.0,0.00052054,31]
[313014396,1706620346483,-500.0,0.00052054,31]
[313014397,1706620346506,-500.0,0.00052054,31]
[313014398,1706620346532,-1000.0,0.00052054,120]
[313014399,1706620346555,-432.85159719,0.00052054,31]
[313014400,1706620346579,-500.0,0.00052054,31]
[313014401,1706620346603,-153.58403512,0.00052054,31]
[313014402,1706620346626,-500.0,0.00052054,31]
[313014403,1706620346649,-611.17323314,0.00052054,31]
[313014404,1706620346672,-561.9699376,0.00052054,31]
[313014405,1706620346696,-645.64939844,0.00052054,31]
[313014406,1706620346718,-517.75429089,0.00052054,31]
[313014407,1706620346741,-1312.57,0.00052054,31]
[313014408,1706620346766,-500.0,0.00052054,31]
[313014409,1706620346790,-500.0,0.00052054,30]
[313014410,1706620346814,-500.0,0.00052054,31]
[313014411,1706620346837,-648.46945097,0.00052054,31]
[313014412,1706620347057,-510.96199983,0.00052054,31]
[313014413,1706620347084,-516.11462532,0.00052054,31]
[313014414,1706620347110,-500.0,0.00052054,31]
[313014415,1706620347133,-546.42756846,0.00052054,31]
[313014416,1706620347156,-570.82869954,0.00052054,31]
[313014417,1706620347181,-534.76893635,0.00052054,31]
[313014418,1706620347205,-500.0,0.00052054,31]
[313014419,1706620347229,-500.0,0.00052054,31]
[313014420,1706620347252,-527.90655757,0.00052054,31]
[313014421,1706620347278,-500.0,0.00052054,31]
[313014422,1706620347301,-533.03745288,0.00052054,31]
[313014423,1706620347324,-333.58406548,0.00052054,31]
[313014424,1706620347347,-500.0,0.00052054,31]
[313014425,1706620347370,-528.80669593,0.00052054,31]
[313014426,1706620347393,-539.22695942,0.00052054,31]
[313014427,1706620347418,-500.0,0.00052054,31]
[313014428,1706620347442,-528.68682619,0.00052054,31]
[313014429,1706620347465,-500.0,0.00052054,31]
[313014430,1706620347488,-483.7543127,0.00052054,31]
[313014431,1706620347511,-500.0,0.00052054,31]
[313014432,1706620347537,-526.48705459,0.00052054,31]
[313014433,1706620347559,-529.52112298,0.00052054,31]
[313014434,1706620347582,-500.0,0.00052054,31]
[313014435,1706620347604,-535.18206915,0.00052054,31]
[313014436,1706620347627,-500.0,0.00052054,31]
[313014437,1706620347656,-616.68390728,0.00052054,31]
[313014438,1706620347679,-609.14938707,0.00052054,31]
[313014439,1706620347701,-500.0,0.00052054,31]
[313014440,1706620347727,-500.0,0.00052054,31]
[313014441,1706620347753,-152.63545441,0.00052054,31]
[313014442,1706620347783,-500.0,0.00052054,31]
[313014443,1706620347805,-500.0,0.00052054,31]
[313014444,1706620347830,-492.14989708,0.00052054,31]
[313014445,1706620347854,-626.71921369,0.00052054,31]
[313014446,1706620347889,-524.23914435,0.00052054,31]
[313014447,1706620347913,-528.90715728,0.00052054,31]
[313014448,1706620347937,-570.79112867,0.00052054,31]
[313014449,1706620347961,-540.06209695,0.00052054,31]
[313014450,1706620347986,-267.35311566,0.00052054,31]
[313014451,1706620348010,-500.0,0.00052054,31]
[313014452,1706620348037,-500.0,0.00052054,31]
[313014453,1706620348061,-639.11916536,0.00052054,31]
[313014454,1706620348085,-525.8223981,0.00052054,31]
[313014455,1706620348114,-617.88821619,0.00052054,31]
[313014456,1706620348137,-552.99527411,0.00052054,31]
[313014457,1706620348159,-649.22418479,0.00052054,31]
[313014458,1706620348183,-624.40357343,0.00052054,31]
[313014459,1706620348207,-500.0,0.00052054,31]
[313014460,1706620348231,-172.67803095,0.00052054,31]
[313014461,1706620348255,-407.76187696,0.00052054,31]
[313014462,1706620348282,-500.0,0.00052054,31]
[313014463,1706620348305,-615.11300355,0.00052054,31]
[313014464,1706620348329,-500.0,0.00052054,31]
[313014465,1706620348353,-567.19881373,0.00052054,31]
[313014466,1706620348380,-560.75694204,0.00052054,31]
[313014467,1706620348404,-310.32666358,0.00052054,31]
[313014468,1706620348429,-184.15066433,0.00052054,31]
[313014469,1706620348453,-500.0,0.00052054,31]
[313014470,1706620348477,-500.0,0.00052054,31]
[313014471,1706620348501,-500.0,0.00052054,31]
[313014472,1706620348529,-500.0,0.00052054,31]
[313014473,1706620348558,-556.39336785,0.00052054,31]
[313014474,1706620348583,-607.23226963,0.00052054,31]
[313014475,1706620348609,-500.0,0.00052054,31]
[313014476,1706620348634,-546.84650785,0.00052054,31]
[313014477,1706620348658,-569.81412573,0.00052054,31]
[313014478,1706620348682,-500.0,0.00052054,31]
[313014479,1706620348707,-500.0,0.00052054,31]
[313014480,1706620348731,-479.69469845,0.00052054,31]
[313014481,1706620348755,-500.0,0.00052054,31]
[313014482,1706620348781,-500.0,0.00052054,31]
[313014483,1706620348805,-500.0,0.00052054,31]
[313014484,1706620348827,-380.61442664,0.00052054,31]
[313014485,1706620348849,-605.41853228,0.00052054,31]
[313014486,1706620348872,-500.0,0.00052054,31]
[313014487,1706620348895,-590.96,0.00052054,31]
[313014488,1706620348917,-500.0,0.00052054,31]
[313014489,1706620348944,-500.0,0.00052054,31]
[313014490,1706620348967,-500.0,0.00052054,31]
[313014491,1706620348991,-500.0,0.00052054,31]
[313014492,1706620349014,-500.0,0.00052054,31]
[313014493,1706620349040,-500.0,0.00052054,31]
[313014494,1706620349063,-564.40948437,0.00052054,31]
[313014495,1706620349088,-500.0,0.00052054,31]
[313014496,1706620349112,-500.0,0.00052054,31]
[313014497,1706620349137,-500.0,0.00052054,31]
[313014498,1706620349166,-643.77,0.00052054,31]
[313014499,1706620349192,-512.72982947,0.00052054,31]
[313014500,1706620349216,-500.0,0.00052054,31]
[313014501,1706620349240,-500.0,0.00052054,31]
[313014502,1706620349264,-500.0,0.00052054,31]
[313014503,1706620349289,-150.0,0.00052054,31]
[313014504,1706620349312,-500.0,0.00052054,31]
[313014505,1706620349336,-500.0,0.00052054,31]
[313014506,1706620349359,-500.0,0.00052054,31]
[313014507,1706620349384,-500.0,0.00052054,31]
[313014508,1706620349409,-500.0,0.00052054,31]
[313014509,1706620349433,-627.91264674,0.00052054,31]
[313014510,1706620349456,-559.87070511,0.00052054,31]
[313014511,1706620349480,-620.4684169,0.00052054,31]
[313014512,1706620349502,-500.0,0.00052054,31]
[313014513,1706620349527,-500.0,0.00052054,31]
[313014514,1706620349551,-500.0,0.00052054,31]
[313014515,1706620349574,-500.0,0.00052054,31]
[313014516,1706620349598,-500.0,0.00052054,31]
[313014517,1706620349620,-500.0,0.00052054,31]
[313014518,1706620349801,-500.0,0.00052054,31]
[313014519,1706620349826,-281.27903342,0.00052054,31]
[313014520,1706620349850,-500.0,0.00052054,31]
[313014521,1706620349873,-500.0,0.00052054,31]
[313014522,1706620349898,-500.0,0.00052054,31]
[313014523,1706620349922,-253.29248418,0.00052054,31]
[313014524,1706620349945,-541.85401056,0.00052054,31]
[313014525,1706620349968,-500.0,0.00052054,31]
[313014526,1706620349990,-589.34345101,0.00052054,31]
[313014527,1706620350013,-500.0,0.00052054,31]
[313014528,1706620350038,-538.0350554,0.00052054,31]
[313014529,1706620350063,-500.0,0.00052054,31]
[313014530,1706620350086,-562.43627367,0.00052054,31]
[313014531,1706620350112,-519.06489838,0.00052054,31]
[313014532,1706620350136,-500.0,0.00052054,31]
[313014533,1706620350160,-219.99850154,0.00052054,31]
[313014534,1706620350184,-500.0,0.00052054,31]
[313014535,1706620350210,-500.0,0.00052054,31]
[313014536,1706620350234,-174.46026854,0.00052054,31]
[313014537,1706620350259,-500.0,0.00052054,31]
[313014538,1706620350284,-500.0,0.00052054,31]
[313014539,1706620350309,-500.0,0.00052054,31]
[313014540,1706620350334,-500.0,0.00052054,31]
[313014541,1706620350358,-567.33885967,0.00052054,31]
[313014542,1706620350381,-500.0,0.00052054,31]
[313014543,1706620350405,-261.62501707,0.00052054,31]
[313014544,1706620350428,-429.31142595,0.00052054,31]
[313014545,1706620350450,-2868.18,0.00052054,31]
[313014546,1706620350474,-500.0,0.00052054,31]
[313014547,1706620350498,-641.90071478,0.00052054,31]
[313014548,1706620350520,-534.74094012,0.00052054,31]
[313014549,1706620350544,-500.0,0.00052054,31]
[313014550,1706620350567,-500.0,0.00052054,31]
[313014551,1706620350590,-500.0,0.00052054,31]
[313014552,1706620350614,-500.0,0.00052054,31]
[313014553,1706620350639,-500.0,0.00052054,31]
[313014554,1706620350670,-500.0,0.00052054,31]
[313014555,1706620350697,-500.0,0.00052054,31]
[313014556,1706620350719,-312.01634671,0.00052054,31]
[313014557,1706620350743,-500.0,0.00052054,31]
[313014558,1706620350766,-164.09583417,0.00052054,31]
[313014559,1706620350792,-500.0,0.00052054,31]
[313014560,1706620350817,-567.27779475,0.00052054,31]
[313014561,1706620350841,-562.13215334,0.00052054,31]
[313014562,1706620350865,-500.0,0.00052054,31]
[313014563,1706620350888,-500.0,0.00052054,31]
[313014564,1706620350912,-518.82597351,0.00052054,31]
[313014565,1706620350937,-544.4421534,0.00052054,31]
[313014566,1706620350960,-589.56588733,0.00052054,31]
[313014567,1706620350986,-649.01014922,0.00052054,31]
[313014568,1706620351010,-859.67,0.00052054,31]
[313014569,1706620351037,-500.0,0.00052054,31]
[313014570,1706620351061,-500.0,0.00052054,31]
[313014571,1706620351085,-557.62655157,0.00052054,31]
[313014572,1706620351111,-500.0,0.00052054,31]
[313014573,1706620351135,-573.4028078,0.00052054,31]
[313014574,1706620351159,-500.0,0.00052054,31]
[313014575,1706620351182,-500.0,0.00052054,31]
[313014576,1706620351207,-500.0,0.00052054,31]
[313014577,1706620351231,-564.11787791,0.00052054,31]
[313014578,1706620351254,-607.46266035,0.00052054,31]
[313014579,1706620351278,-571.94569682,0.00052054,31]
[313014580,1706620351300,-588.25617155,0.00052054,31]
[313014581,1706620351327,-548.9463037,0.00052054,31]
[313014582,1706620351351,-500.0,0.00052054,31]
[313014583,1706620351374,-622.82523032,0.00052054,31]
[313014584,1706620351397,-500.0,0.00052054,31]
[313014585,1706620351419,-500.0,0.00052054,31]
[313014586,1706620351443,-626.57,0.00052054,31]
[313014587,1706620351467,-500.0,0.00052054,31]
[313014588,1706620351490,-447.67868119,0.00052054,31]
[313014589,1706620351512,-500.0,0.00052054,31]
[313014590,1706620351536,-631.87004132,0.00052054,31]
[313014591,1706620351559,-557.56518168,0.00052054,31]
[313014592,1706620351582,-500.0,0.00052054,31]
[313014593,1706620351603,-500.0,0.00052054,31]
[313014594,1706620351627,-500.0,0.00052054,31]
[313014595,1706620351649,-1081.32,0.00052054,31]
[313014596,1706620351672,-500.0,0.00052054,31]
[313014597,1706620351696,-500.0,0.00052054,31]
[313014598,1706620351719,-500.0,0.00052054,31]
[313014599,1706620351742,-570.0928969,0.00052054,31]
[313014600,1706620351765,-596.6394736,0.00052054,31]
[313014601,1706620351789,-500.0,0.00052054,31]
[313014602,1706620351812,-500.0,0.00052054,31]
[313014603,1706620351834,-538.82836818,0.00052054,31]
[313014604,1706620351857,-500.0,0.00052054,31]
[313014605,1706620351879,-500.0,0.00052054,31]
[313014606,1706620351902,-500.0,0.00052054,31]
[313014607,1706620351924,-512.35438662,0.00052054,31]
[313014608,1706620351947,-500.0,0.00052054,31]
[313014609,1706620351971,-500.0,0.00052054,31]
[313014610,1706620351999,-500.0,0.00052054,31]
[313014611,1706620352023,-500.0,0.00052054,31]
[313014612,1706620352048,-545.11985715,0.00052054,31]
[313014613,1706620352071,-500.0,0.00052054,31]
[313014614,1706620352096,-500.0,0.00052054,31]
[313014615,1706620352123,-549.30994752,0.00052054,31]
[313014616,1706620352146,-572.6955288,0.00052054,31]
[313014617,1706620352169,-500.0,0.00052054,31]
[313014618,1706620352192,-607.24961987,0.00052054,31]
[313014619,1706620352216,-500.0,0.00052054,31]
[313014620,1706620352239,-500.0,0.00052054,31]
[313014621,1706620352262,-500.0,0.00052054,31]
[313014622,1706620352287,-500.0,0.00052054,31]
[313014623,1706620352456,-541.14687741,0.00052054,31]
[313014624,1706620352481,-500.0,0.00052054,31]
[313014625,1706620352505,-552.69715688,0.00052054,31]
[313014626,1706620352529,-559.19626672,0.00052054,31]
[313014627,1706620352551,-500.0,0.00052054,31]
[313014628,1706620352577,-500.0,0.00052054,31]
[313014629,1706620352600,-500.0,0.00052054,31]
[313014630,1706620352624,-219.23383296,0.00052054,31]
[313014631,1706620352648,-500.0,0.00052054,31]
[313014632,1706620352672,-500.0,0.00052054,31]
[313014633,1706620352697,-500.0,0.00052054,31]
[313014634,1706620352722,-524.94949936,0.00052054,31]
[313014635,1706620352745,-500.0,0.00052054,120]
[313014636,1706620352769,-500.0,0.00052054,31]
[313014637,1706620352795,-500.0,0.00052054,31]
[313014638,1706620352819,-500.0,0.00052054,31]
[313014639,1706620352843,-500.0,0.00052054,31]
[313014640,1706620352866,-619.35332505,0.00052054,31]
[313014641,1706620352889,-481.07992645,0.00052054,31]
[313014642,1706620352912,-500.0,0.00052054,31]
[313014643,1706620352937,-500.0,0.00052054,31]
[313014644,1706620352960,-1145.54,0.00052054,31]
[313014645,1706620352983,-500.0,0.00052054,31]
[313014646,1706620353007,-648.53784443,0.00052054,31]
[313014647,1706620353032,-500.0,0.00052054,31]
[313014648,1706620353058,-500.0,0.00052054,31]
[313014649,1706620353082,-500.0,0.00052054,31]
[313014650,1706620353105,-294.8655875,0.00052054,31]
[313014651,1706620353132,-500.0,0.00052054,31]
[313014652,1706620353155,-500.0,0.00052054,31]
[313014653,1706620353178,-500.0,0.00052054,31]
[313014654,1706620353205,-500.0,0.00052054,31]
[313014655,1706620353231,-623.24355607,0.00052054,31]
[313014656,1706620353255,-590.34560675,0.00052054,31]
[313014657,1706620353279,-500.0,0.00052054,31]
[313014658,1706620353305,-164.83664368,0.00052054,31]
[313014659,1706620353329,-500.0,0.00052054,31]
[313014660,1706620353353,-500.0,0.00052054,31]
[313014661,1706620353376,-601.20157769,0.00052054,31]